Cogmind - Beta 14 @@@ ROGUE MODE // 2024.12.11 @ 22:37:11 Player: Tater Result: Destroyed by S-10 Pest with Light Assault Rifle Performance ------------- Evolutions (0) 0 Regions Visited (2) 400 Robots Destroyed (14) 70 Value Destroyed (230) 230 Prototype IDs (0) 0 Alien Tech Used (0) 0 Bonus (0) 0 TOTAL SCORE: 700 Bonus ------- None Cogmind --------- Core Integrity 0/250 Matter 286/300 Energy 125/125 System Corruption 5% Temperature Cool (0) Movement Walking (120) Location -10/Mines Parts ------- > --- POWER (1) -------- Light Ion Engine > --- PROPULSION (2) --- Aluminum Leg Aluminum Leg > --- UTILITY (2) ------ Medium Storage Unit Salvage Targeting Computer > --- WEAPON (2) ------- Assault Rifle Light Assault Rifle > --- INVENTORY (10) --- Compact Wheel Peak State ------------ > --- POWER ------------ Ion Engine > --- PROPULSION ------- Compact Wheel Compact Wheel > --- UTILITY ---------- Small Storage Unit Salvage Targeting Computer > --- WEAPON ----------- EM Pulse Gun Assault Rifle > --- INVENTORY -------- (None) [Rating: 8] Favorites ----------- Power Light Ion Engine Engine Light Ion Engine Propulsion Compact Wheel Leg Aluminum Leg Wheel Compact Wheel Flight Unit Flight Unit Utility Small Storage Unit Storage Small Storage Unit Processor Salvage Targeting Computer Weapon Assault Rifle Energy Gun EM Pulse Gun Ballistic Gun Assault Rifle Launcher Grenade Launcher Build | -11 -10 -10 ------- Run | Yrd Mat Min Slots Evolved . | . . . Power . | . . . Propulsion . | . . . Utility . | . . . Weapon . | . . . Parts Attached 18 | 6 11 1 Power 2 | 1 1 . Engine 2 | 1 1 . Core . | . . . Reactor . | . . . Propulsion 7 | 2 5 . Treads . | . . . Leg 2 | . 2 . Wheel 3 | 2 1 . Hover . | . . . Flight 2 | . 2 . Utility 3 | 1 1 1 Device . | . . . Storage 2 | 1 . 1 Processor 1 | . 1 . Hackware . | . . . Protection . | . . . Artifact . | . . . Weapon 6 | 2 4 . Energy Gun 2 | 1 1 . Energy Cannon . | . . . Ballistic Gun 3 | 1 2 . Ballistic Cannon . | . . . Launcher 1 | . 1 . Special Weapon . | . . . Impact Weapon . | . . . Slashing Weapon . | . . . Piercing Weapon . | . . . Special Melee Weapon . | . . . Unidentified Prototypes . | . . . Parts Lost 6 | . 6 . Power 1 | . 1 . Propulsion 2 | . 2 . Utility . | . . . Weapon 3 | . 3 . Highest Loss Streak 4 | . 4 . To Critical Strikes . | . . . Average Slot Usage (%) 95 | . 92 100 Engine 12 | . 12 14 Leg 12 | . 2 28 Wheel 9 | . 16 . Flight 4 | . 7 . Storage 14 | . 14 14 Processor 14 | . 14 14 Energy Gun 5 | . 8 . Ballistic Gun 20 | . 15 28 Peak Build Rating 8 | 6 8 8 Average Rating 7 | 5 7 7 On Entrance 4 | . 6 8 Naked Turns . | . . . Heaviest Build 16 | 14 15 16 Greatest Support 32 | 32 32 20 Greatest Overweight (x) 1 | . 1 . Average Overweight (x) . | . . . Largest Inventory Capacity 10 | 8 8 10 Average Capacity 8 | 7 8 8 Most Carried 4 | 1 4 1 Average Carried . | . . 1 Final Capacity 10 | 8 8 10 Final Carried 1 | . 1 1 Class Distribution -------------------- 100% | Mutant Dominant Class ---------------- Mutant | -10/Materials Mutant | -10/Mines Resources | -11 -10 -10 ----------- Run | Yrd Mat Min Matter Collected 460 | 207 175 78 Remotely . | . . . Salvage Created 231 | . 215 16 Parts 26 | . 24 2 Haulers Intercepted . | . . . Recyclers Shooed . | . . . Parts Field Recycled . | . . . Retrieved Matter . | . . . Parts Self-Destructed . | . . . Prevented . | . . . Kills | -11 -10 -10 ------- Run | Yrd Mat Min Combat Hostiles Destroyed 12 | . 11 1 Guns 8 | . 7 1 AOE 4 | . 4 . Classes Destroyed 3 | . 3 . Operator 2 | . 2 . Swarmer 10 | . 9 1 Grunt 2 | . 2 . Best Kill Streak 5 | . 5 1 Combat Bots Only 4 | . 4 1 Max Kills in Single Turn 3 | . 3 1 Gunslinging . | . . . Exploded 3 | . 3 . Melee . | . . . Uniques/NPCs Destroyed . | . . . Combat | -11 -10 -10 -------- Run | Yrd Mat Min Hostile Shots Fired 78 | . 76 2 Missed 20 | . 19 1 Damage Taken 821 | . 811 10 Core 258 | . 248 10 Absorbed by Shields . | . . . Core Remaining (%) 100 | 100 . . Volleys Fired 31 | . 30 1 Largest 2 | . 2 2 Hottest 60 | . 60 40 Shots Fired 52 | . 50 2 Gun 50 | . 48 2 Cannon . | . . . Launcher 2 | . 2 . Special . | . . . Kinetic 33 | . 31 2 Thermal . | . . . Explosive 2 | . 2 . Electromagnetic 17 | . 17 . Robot Hit Streak 6 | . 6 5 Robot Miss Streak 4 | . 4 1 Penetration Max . | . . . Secondary Targets 2 | . 1 1 Max Gunslinging Chain 1 | . 1 1 Shots Hit Robots 30 | . 29 1 Core Hits 16 | . 15 1 Critical Kills . | . . . Critical Parts Destroyed . | . . . Critical Strikes 1 | . 1 . Corrupt 1 | . 1 . Melee Attacks . | . . . Impact . | . . . Slashing . | . . . Piercing . | . . . Sneak Attacks . | . . . Combat Hostiles . | . . . Follow-up Attacks . | . . . Damage Inflicted 612 | . 601 11 Guns 380 | . 369 11 Cannons . | . . . Explosions 232 | . 232 . Melee . | . . . Ramming . | . . . Kinetic 250 | . 239 11 Thermal 75 | . 75 . Explosive 157 | . 157 . Electromagnetic 130 | . 130 . Impact . | . . . Slashing . | . . . Piercing . | . . . Highest Corruption 5 | . 5 5 Average Corruption 5 | . 5 5 Corruption Purged . | . . . Corruption Blocked . | . . . Effects 14 | . 6 8 Matter Fused 3 | . 1 2 Heat Flow Errors 3 | . 1 2 Energy Discharges 2 | . . 2 Data Loss (minor) 2 | . 1 1 Data Loss (major) 3 | . 2 1 Weapon Failures 1 | . 1 . Overload Shots . | . . . Overflow Damage 100 | . 100 . Projectiles . | . . . Explosions 100 | . 100 . Melee . | . . . Knockbacks . | . . . Impact . | . . . Kinetic . | . . . Secondary . | . . . Self-Inflicted Damage 76 | . 76 . Shots 2 | . 2 . Rammed . | . . . Targets Rammed . | . . . Kicked . | . . . Crushed . | . . . Highest Temperature 170 | . 170 166 Average Temperature 57 | . 36 84 Received Heat Transfer 60 | . 60 . Siege Activations . | . . . Robots Corrupted . | . . . Combat Hostiles . | . . . Parts Fried . | . . . Impact Corruptions . | . . . Robots Melted . | . . . Combat Hostiles . | . . . Parts Melted . | . . . Heat Transferred 50 | . 50 . Parts Sabotaged . | . . . Parts Stolen . | . . . Parts Stripped . | . . . Power Chain Reactions . | . . . Alert | -11 -10 -10 ------- Run | Yrd Mat Min Peak Influence 320 | . 320 66 Initial 46 | . . 46 Average 84 | . 151 46 Maximum Alert Level 1 | . 1 . Low Security (%) 78 | 100 52 100 Level 1 21 | . 47 . Level 2 . | . . . Level 3 . | . . . Level 4 . | . . . Level 5 . | . . . High Security . | . . . Max Security . | . . . Squads Dispatched 2 | . 2 . Investigation . | . . . Extermination . | . . . Reinforcement 2 | . 2 . Assault . | . . . Garrison . | . . . Intercept . | . . . Searches Triggered . | . . . Construction Impeded . | . . . Haulers Reinforced . | . . . Active Scanning Responses . | . . . Cargo Convoy Interrupts . | . . . Stealth | -11 -10 -10 --------- Run | Yrd Mat Min Distress Signals . | . . . Communications Jammed . | . . . Distress Signals . | . . . Times Spotted 16 | . 13 3 Peak Tracking Total 4 | . 4 3 Tactical Retreats 1 | . 1 . Traps | -11 -10 -10 ------- Run | Yrd Mat Min Traps Triggered . | . . . Indirectly . | . . . Trap Hack Attempts . | . . . Triggered . | . . . Disarmed 1 | . 1 . Reprogrammed . | . . . Reused . | . . . Traps Extracted . | . . . Installed . | . . . Triggered . | . . . Machines | -11 -10 -10 ---------- Run | Yrd Mat Min Machines Disabled 3 | . 3 . Max in Single Turn 3 | . 3 . Machines Repaired . | . . . Machines Dismantled . | . . . Machines Sabotaged . | . . . Overloaded Fab Kills . | . . . Hacking | -11 -10 -10 --------- Run | Yrd Mat Min Machines Accessed 1 | . 1 . Terminals 1 | . 1 . Fabricators . | . . . Repair Stations . | . . . Recycling Units . | . . . Scanalyzers . | . . . Garrison Access . | . . . Total Hacks 3 | . 3 . Successful 3 | . 3 . Failed . | . . . Catastrophic . | . . . Database Lockouts . | . . . Manual . | . . . Terminals 3 | . 3 . Fabricators . | . . . Repair Stations . | . . . Recycling Units . | . . . Scanalyzers . | . . . Garrison Access . | . . . Terminal Hacks 3 | . 3 . Record 2 | . 2 . Disarm Traps 1 | . 1 . Fabricator Hacks . | . . . Repair Station Hacks . | . . . Recycling Unit Hacks . | . . . Scanalyzer . | . . . Garrison Access Hacks . | . . . Unauthorized Hacks . | . . . Terminals . | . . . Fabricators . | . . . Repair Stations . | . . . Recycling Units . | . . . Scanalyzers . | . . . Garrison Access . | . . . Data Cores Recovered . | . . . Used . | . . . Hacking Detections 1 | . 1 . Full Trace Events . | . . . Feedback Events . | . . . Feedback Blocked . | . . . Robot Schematics Acquired . | . . . Robots Built . | . . . Authchips . | . . . Time . | . . . Total Robot Build Rating . | . . . Part Schematics Acquired . | . . . Parts Built . | . . . Authchips . | . . . Time . | . . . Total Part Build Rating . | . . . Parts Repaired . | . . . Time . | . . . Parts Recycled . | . . . Recycled Matter . | . . . Retrieved Matter . | . . . Retrieved Components . | . . . Parts Scanalyzed . | . . . Part Schematics Acquired . | . . . Parts Damaged . | . . . Bothacking | -11 -10 -10 ------------ Run | Yrd Mat Min Used RIF Installer . | . . . Robots Hacked . | . . . Non-combat . | . . . Combat . | . . . Robot Hacks Applied . | . . . Relay Couplers Released . | . . . Fabnet Peak Effective % . | . . . Robots Rewired . | . . . Allies Hacked . | . . . Hacks Repelled . | . . . Allies | -11 -10 -10 -------- Run | Yrd Mat Min Total Allies . | . . . Largest Group . | . . . Highest-Rated Group . | . . . Highest-Rated Ally . | . . . Total Orders . | . . . Ally Attacks . | . . . Total Damage . | . . . Kills . | . . . Allies Corrupted . | . . . Allies Melted . | . . . Intel | -11 -10 -10 ------- Run | Yrd Mat Min Robot Analysis Total . | . . . Derelict Logs Recovered . | . . . Drone Launches . | . . . Drone Recoveries . | . . . Exploration | -11 -10 -10 ------------- Run | Yrd Mat Min Turns Passed 892 | 200 410 282 Spaces Moved 552 | 94 236 222 Core 3 | 3 . . Treads . | . . . Legs 248 | . 26 222 Wheels 267 | 91 176 . Hover . | . . . Flight 34 | . 34 . Fastest Speed 50 | 50 100 120 Average Speed 110 | 98 105 120 Slowest Speed 190 | 100 190 120 Overloaded Moves . | . . . Propulsion Burnouts . | . . . Robots Hopped . | . . . Cave-ins Triggered 1 | . 1 . Exploration Rate (%) 33 | 8 53 38 Regions Visited 2 Branch Regions 1 Pre-discovered Areas . | . . . Known Exits Taken . | . . . Unknown Exits Taken 2 | 1 1 . Scrap Searched 1 | . . 1 Spaces Dug . | . . . Terrain Destroyed 68 | . 68 . Melee . | . . . Projectile . | . . . AOE 68 | . 68 . Terrain Rammed . | . . . Walls Destroyed . | . . . Machines Disabled . | . . . Actions | -11 -10 -10 --------- Run | Yrd Mat Min Total 783 | 199 347 237 Wait 172 | 98 62 12 Move 550 | 93 235 222 Hop . | . . . Pick Up 6 | 2 4 . Fast Attach 11 | 4 6 1 Attach 6 | 2 4 . Detach 3 | . 3 . Swap 1 | . 1 . Drop 3 | . 2 1 Fire 31 | . 30 1 Melee . | . . . Ram . | . . . Kick . | . . . Crush . | . . . Escape Stasis . | . . . Rewire . | . . . Trap . | . . . Miscellaneous . | . . . Route ------- -11/Scrapyard -10/Materials -10/Mines History --------- Turn | Location | Event 29 | -11/Scrapyard | Discovered new exit (range 15) 201 | -11/Scrapyard | Entered Materials 302 | -10/Materials | Build established: Mutant 408 | -10/Materials | Crushed by falling debris 408 | -10/Materials | Core integrity fell below 50% 432 | -10/Materials | Core integrity fell below 20% 464 | -10/Materials | Lost 4 parts (1p1n2w) 477 | -10/Materials | Discovered new exit (range 14) 611 | -10/Materials | Entered Mines 893 | -10/Mines | Destroyed by S-10 Pest with Light Assault Rifle Last Messages --------------- Searching scrap... Found Med. Storage Unit. Found Lgt. Assault Rifle. Found 47 Matter. Found Datajack. Found 56 Matter. Acquired 56 matter. Acquired 22 matter. System corrupted: Energy discharge (-40). Dropped Sml. Storage Unit. Acquired Med. Storage Unit. K-01 Serf collects debris. System corrupted: Component data lost. K-01 Serf collects debris. T-07 Excavator is excavating. K-01 Serf collects debris. U-05 Engineer lays Concrete. System corrupted: Heat flow error (+168). S-10 Pest destroyed. Switching to secondary target: S-10 Pest. Map ----- +----------------------------------------------------+ | ?????????????????????????????????????? | | ?????????????????????????????????????? | | ?????????????????????????????????????? | | ?????????????????????????????????????? | | ?????????????????????????????????????? | | ?????????????????????????????????????? | | ?????????????????????????????????????? | | ?????????????????????????????????????? | | ?????????????????????????????????????? | | ??????????????????????####???????????? | | ?????????????????????## ##??????????? | | ?????????????????????# #??????????? | | ?????????????????????# #??????????? | | ?????????????????????# #??????????? | | ?????????????????????# #??????????? | | ?????????????????????## ##??????????? | | ??????????????????????# #???????????? | | ??????????????????????# #???????????? | | ????????????########### #???????????? | | ????????????# #???????????? | | ????????????# #???????????? | | ????????????# ###########???????????? | | ????????????# #?????#####???????????? | | ?##?????##### ###??## #?????? #?? | | ?????# #?## ### #??? | | ?????# #?# @*ss #??? | | ?????# #?# r r#### #??? | | ?????# """ ### ##???????????? | | ?????# """ ## ##????????????? | | ?????# """ ## #?????????????? | | ##???# """ ## #?????????????? | | #???# ### ##?????????????? | | ???## #######?## #??????????????? | | $ ##### #????????# #??????????????? | | # ## #????????# #??????????????? | | ?# ## #####????????# #??????????????? | | ?# ## ###########??# #??????????????? | | ## #??# #??????????????? | | ####### #### #??# #??????????????? | | # ###???# #??# #??# #??????????????? | | ## ##??# ##?# #### ####???????????? | | ## #?## ### #???????????? | | # #?# ########## #???????????? | | # #?# ##??????# #???????????? | | #?## ##?????# ###?????????? | | ##?## #????## ##????????? | | ##?## ###### #????????? | | #### #????????? | | # """ # #??????? | | # """ #### #??????? | +----------------------------------------------------+ Best States ------------- Heat Dissipation 25 Energy Generation 10 Energy Capacity 250 Matter Stores 300 Matter Capacity 300 Sight Range 16 Terrain Scan Density 10 Evasion (%) 55 Salvage Targeting 1 Item Schematics ----------------- None Robot Schematics ------------------ None Fabricated ------------ Nothing Alien Tech Used ----------------- None Achievements -------------- Unlikely Earthworm Challenges ------------ None Game ------ Seed GhostLaserProtomatter Manual? 0 Play Time 00:15:59 Cumulative 3.4 hours Start 2024.12.11 @ 22:20:54 End 2024.12.11 @ 22:37:11 Sessions 1 Manual Loads 0 Difficulty Rogue Special Mode None Game No. 3 Rogue 3 Adventurer 0 Explorer 0 Win Type - Total 0 Types 0/0/0/0/0/0/0/0/0 Lore% 0 Gallery% 9 Achievement% 9 Wizard Run 0 Options --------- Layout 1 ASCII 0 Keyboard 0 Movement Mouse Keybinds 0 Fullscreen 1 Font 24/Smallcaps Map View 50x35 Zoom Use 0% Tactical HUD 0 Map Filters NONE Filters NONE Steam 1 RUN: 98db9fda-144d-45b6-93dc-fdfc33cb9b60